fUSD/lending_fUSD_20250221
["ID","MTS","AMOUNT","RATE_DAILY","PERIOD"]
[353992015,1740175851356,-520.07211211,0.00011444,2]
[353992016,1740175851366,-500.0,0.00011444,2]
[353992017,1740175851375,-500.0,0.00011444,2]
[353992018,1740175851385,-500.0,0.00011444,2]
[353992019,1740175851395,-500.0,0.00011444,2]
[353992020,1740175851404,-500.0,0.00011444,2]
[353992021,1740175851414,-500.0,0.00011444,2]
[353992022,1740175851423,-500.0,0.00011444,2]
[353992023,1740175851433,-596.02,0.00011444,2]
[353992024,1740175851443,-500.0,0.00011444,2]
[353992025,1740175851452,-907.74,0.00011444,2]
[353992026,1740175851462,-505.12,0.00011444,2]
[353992027,1740175851471,-500.0,0.00011444,2]
[353992028,1740175851480,-500.0,0.00011444,2]
[353992029,1740175851490,-500.0,0.00011444,2]
[353992030,1740175851500,-500.0,0.00011444,2]
[353992031,1740175851509,-500.0,0.00011444,2]
[353992032,1740175851518,-626.62588434,0.00011444,2]
[353992033,1740175851528,-500.0,0.00011444,2]
[353992034,1740175851538,-772.23,0.00011444,2]
[353992035,1740175851548,-637.93745965,0.00011444,2]
[353992036,1740175851558,-633.15,0.00011444,2]
[353992037,1740175851568,-500.0,0.00011444,2]
[353992038,1740175851578,-1053.43,0.00011444,2]
[353992039,1740175851587,-500.0,0.00011444,2]
[353992040,1740175851597,-1338.15,0.00011444,2]
[353992041,1740175851607,-561.2,0.00011444,2]
[353992042,1740175851620,-505.52,0.00011444,2]
[353992043,1740175851630,-640.1,0.00011444,2]
[353992044,1740175851640,-500.0,0.00011444,2]
[353992045,1740175851651,-500.0,0.00011445,2]
[353992046,1740175851660,-500.0,0.00011445,2]
[353992047,1740175851669,-500.0,0.00011445,2]
[353992048,1740175851679,-500.0,0.00011445,2]
[353992049,1740175851689,-500.0,0.00011445,2]
[353992050,1740175851699,-500.0,0.00011445,2]
[353992051,1740175851708,-500.0,0.00011445,2]
[353992052,1740175851718,-500.0,0.00011445,2]
[353992053,1740175851727,-260.9,0.00011445,2]
[353992054,1740175851737,-500.0,0.00011445,2]
[353992055,1740175851746,-500.0,0.00011445,2]
[353992056,1740175851756,-500.0,0.00011445,2]
[353992057,1740175851766,-562.94,0.00011445,2]
[353992058,1740175851776,-233.15,0.00011445,2]
[353992059,1740175851786,-500.0,0.00011445,2]
[353992060,1740175851795,-611.36,0.00011445,2]
[353992061,1740175851804,-587.93,0.00011445,2]
[353992062,1740175851815,-475.53,0.00011445,2]
[353992063,1740175851825,-546.63,0.00011445,2]
[353992064,1740175851835,-500.0,0.00011445,2]
[353992065,1740175851845,-500.0,0.00011445,2]
[353992066,1740175851855,-443.63,0.00011445,2]
[353992067,1740175851865,-500.0,0.00011445,2]
[353992068,1740175851875,-515.89,0.00011445,2]
[353992069,1740175851885,-500.0,0.00011445,2]
[353992070,1740175851894,-579.03,0.00011445,2]
[353992071,1740175851905,-500.0,0.00011445,2]
[353992072,1740175851914,-500.0,0.00011445,2]
[353992073,1740175851923,-500.0,0.00011445,2]
[353992074,1740175851933,-500.0,0.00011445,2]
[353992075,1740175851942,-644.72,0.00011445,2]
[353992076,1740175851951,-500.0,0.00011445,2]
[353992077,1740175851961,-712.4,0.00011445,2]
[353992078,1740175851970,-649.39,0.00011445,2]
[353992079,1740175851980,-500.0,0.00011445,2]
[353992080,1740175851989,-1563.0,0.00011445,2]
[353992081,1740175851998,-500.0,0.00011445,2]
[353992082,1740175852007,-498.39848142,0.00011445,2]
[353992083,1740175852016,-1053.07,0.00011445,2]
[353992084,1740175852025,-500.0,0.00011445,2]
[353992085,1740175852034,-1338.11,0.00011445,2]
[353992086,1740175852044,-500.0,0.00011445,2]
[353992087,1740175852053,-1204.61,0.00011445,2]
[353992088,1740175852062,-516.44,0.00011445,2]
[353992089,1740175852071,-524.75,0.00011445,2]
[353992090,1740175852081,-1032.03,0.00011445,2]
[353992091,1740175852090,-500.0,0.00011445,2]
[353992092,1740175852099,-500.0,0.00011445,2]
[353992093,1740175852109,-500.0,0.00011445,2]
[353992094,1740175852119,-500.0,0.00011445,2]
[353992095,1740175852128,-500.0,0.00011445,2]
[353992096,1740175852138,-500.0,0.00011445,2]
[353992097,1740175852148,-768.2,0.00011445,2]
[353992098,1740175852157,-500.0,0.00011445,2]
[353992099,1740175852166,-785.25,0.00011445,2]
[353992100,1740175852176,-500.0,0.00011445,2]
[353992101,1740175852185,-838.82,0.00011445,2]
[353992102,1740175852195,-1010.76,0.00011445,2]
[353992103,1740175852204,-500.0,0.00011445,2]
[353992104,1740175852214,-2224.65,0.00011445,2]
[353992105,1740175852223,-500.0,0.00011445,2]
[353992106,1740175852233,-500.0,0.00011445,2]
[353992107,1740175852242,-500.0,0.00011445,2]
[353992108,1740175852251,-500.0,0.00011445,2]
[353992109,1740175852261,-557.6,0.00011445,2]
[353992110,1740175852270,-500.0,0.00011445,2]
[353992111,1740175852279,-500.0,0.00011445,2]
[353992112,1740175852289,-500.0,0.00011445,2]
[353992113,1740175852299,-500.0,0.00011445,2]
[353992114,1740175852308,-500.0,0.00011445,2]
[353992115,1740175852319,-150.0,0.00011469,2]
[353992116,1740175852328,-500.0,0.00011473,2]
[353992117,1740175852337,-150.0,0.00011475,2]
[353992118,1740175852346,-150.0,0.00011486,2]
[353992119,1740175852356,-310.74549448,0.00011508,2]
[353992120,1740175852365,-167.63189637,0.00011515,2]
[353992121,1740175852375,-3734.10983442,0.00011515,2]
[353992122,1740175852384,-150.0,0.00011517,2]
[353992123,1740175852393,-150.0,0.00011519,2]
[353992124,1740175852403,-840.36,0.00011525,2]
[353992125,1740175852413,-500.0,0.00011525,2]
[353992126,1740175852423,-550.99,0.00011525,2]
[353992127,1740175852433,-456.441457,0.00011525,2]
[353992128,1740175852442,-500.0,0.00011525,2]
[353992129,1740175852452,-1301.04,0.00011525,2]
[353992130,1740175852463,-660.858377,0.00011525,2]
[353992131,1740175852472,-731.38,0.00011525,2]
[353992132,1740175852482,-643.93,0.00011525,2]
[353992133,1740175852491,-770.4,0.00011525,2]
[353992134,1740175852501,-1037.35,0.00011525,2]
[353992135,1740175852511,-761.15,0.00011525,2]
[353992136,1740175852521,-694.42,0.00011525,2]
[353992137,1740175852530,-999.84,0.00011525,2]
[353992138,1740175852540,-2978.62,0.00011525,2]
[353992139,1740175852550,-531.77,0.00011525,2]
[353992140,1740175852559,-1077.31,0.00011525,2]
[353992141,1740175852570,-500.0,0.00011525,2]
[353992142,1740175852580,-999.03,0.00011525,2]
[353992143,1740175852590,-772.25,0.00011525,2]
[353992144,1740175852601,-687.87,0.00011525,2]
[353992145,1740175852611,-798.38,0.00011525,2]
[353992146,1740175852623,-1330.6,0.00011525,2]
[353992147,1740175852632,-580.79,0.00011525,2]
[353992148,1740175852643,-500.0,0.00011525,2]
[353992149,1740175852653,-1652.61,0.00011525,2]
[353992150,1740175852663,-584.29,0.00011525,2]
[353992151,1740175852673,-500.0,0.00011525,2]
[353992152,1740175852682,-1064.57,0.00011525,2]
[353992153,1740175852694,-1257.4,0.00011525,2]
[353992154,1740175852704,-617.67,0.00011525,2]
[353992155,1740175852713,-1008.78,0.00011525,2]
[353992156,1740175852723,-934.47,0.00011525,2]
[353992157,1740175852733,-607.43,0.00011525,2]
[353992158,1740175852743,-1149.16,0.00011525,2]
[353992159,1740175852753,-557.37,0.00011525,2]
[353992160,1740175852763,-500.0,0.00011525,2]
[353992161,1740175852773,-1059.67,0.00011525,2]
[353992162,1740175852783,-713.85,0.00011525,2]
[353992163,1740175852792,-619.22,0.00011525,2]
[353992164,1740175852802,-500.0,0.00011525,2]
[353992165,1740175852812,-500.0,0.00011525,2]
[353992166,1740175852821,-877.35,0.00011525,2]
[353992167,1740175852831,-1059.0,0.00011525,2]
[353992168,1740175852840,-1371.99,0.00011525,2]
[353992169,1740175852849,-1195.87,0.00011525,2]
[353992170,1740175852858,-500.0,0.00011525,2]
[353992171,1740175852868,-1159.59,0.00011525,2]
[353992172,1740175852877,-309.6876533,0.00011525,2]
[353992173,1740175852887,-500.0,0.00011525,2]
[353992174,1740175852896,-500.0,0.00011525,2]
[353992175,1740175852906,-716.76,0.00011525,2]
[353992176,1740175852916,-500.0,0.00011525,2]
[353992177,1740175852926,-500.0,0.00011525,2]
[353992178,1740175852936,-2524.55,0.00011525,2]
[353992179,1740175852946,-500.0,0.00011525,2]
[353992180,1740175852956,-500.0,0.00011525,2]
[353992181,1740175852966,-500.0,0.00011526,2]
[353992182,1740175852975,-500.0,0.00011526,2]
[353992183,1740175852984,-500.0,0.00011526,2]
[353992184,1740175852994,-500.0,0.00011526,2]
[353992185,1740175853003,-831.16,0.00011526,2]
[353992186,1740175853014,-308.4,0.00011526,2]
[353992187,1740175853023,-672.19,0.00011526,2]
[353992188,1740175853033,-614.03,0.00011526,2]
[353992189,1740175853043,-500.0,0.00011526,2]
[353992190,1740175853054,-417.1806256,0.00011526,2]
[353992191,1740175853064,-500.0,0.00011526,2]
[353992192,1740175853074,-586.13,0.00011526,2]
[353992193,1740175853084,-398.58,0.00011526,2]
[353992194,1740175853094,-500.0,0.00011526,2]
[353992195,1740175853104,-500.0,0.00011526,2]
[353992196,1740175853115,-500.0,0.00011526,2]
[353992197,1740175853125,-500.0,0.00011526,2]
[353992198,1740175853135,-500.0,0.00011526,2]
[353992199,1740175853145,-500.0,0.00011526,2]
[353992200,1740175853155,-500.0,0.00011526,2]
[353992201,1740175853165,-500.0,0.00011526,2]
[353992202,1740175853174,-500.0,0.00011526,2]
[353992203,1740175853184,-500.0,0.00011526,2]
[353992204,1740175853194,-500.0,0.00011526,2]
[353992205,1740175853203,-596.02,0.00011526,2]
[353992206,1740175853214,-500.0,0.00011526,2]
[353992207,1740175853223,-907.74,0.00011526,2]
[353992208,1740175853233,-505.12,0.00011526,2]
[353992209,1740175853242,-500.0,0.00011526,2]
[353992210,1740175853252,-500.0,0.00011526,2]
[353992211,1740175853261,-500.0,0.00011526,2]
[353992212,1740175853271,-500.0,0.00011526,2]
[353992213,1740175853280,-590.6143739,0.00011526,2]
[353992214,1740175853289,-500.0,0.00011526,2]
[353992215,1740175853299,-772.23,0.00011526,2]
[353992216,1740175853308,-633.15,0.00011526,2]
[353992217,1740175853318,-500.0,0.00011526,2]
[353992218,1740175853328,-1053.43,0.00011526,2]
[353992219,1740175853338,-500.0,0.00011526,2]
[353992220,1740175853348,-1338.15,0.00011526,2]
[353992221,1740175853357,-505.52,0.00011526,2]
[353992222,1740175853367,-640.1,0.00011526,2]
[353992223,1740175853377,-1000.0,0.00011526,2]
[353992224,1740175853386,-1000.0,0.00011526,2]
[353992225,1740175853396,-533.55,0.00011526,2]
[353992226,1740175853406,-500.0,0.00011526,2]
[353992227,1740175853558,-375.88651735,0.00011527,2]
[353992228,1740175853573,-500.0,0.00011527,2]
[353992229,1740175853583,-495.1464269,0.00011527,2]
[353992230,1740175853593,-500.0,0.00011527,2]
[353992231,1740175853606,-500.0,0.00011527,2]
[353992232,1740175853616,-500.0,0.00011527,2]
[353992233,1740175853625,-500.0,0.00011527,2]
[353992234,1740175853635,-500.0,0.00011527,2]
[353992235,1740175853645,-237.02,0.00011527,2]
[353992236,1740175853655,-500.0,0.00011527,2]
[353992237,1740175853664,-500.0,0.00011527,2]
[353992238,1740175853673,-587.93,0.00011527,2]
[353992239,1740175853682,-546.63,0.00011527,2]
[353992240,1740175853692,-500.0,0.00011527,2]
[353992241,1740175853702,-500.0,0.00011527,2]
[353992242,1740175853711,-380.31,0.00011527,2]
[353992243,1740175853720,-515.89,0.00011527,2]
[353992244,1740175853729,-271.63,0.00011527,2]
[353992245,1740175853739,-579.03,0.00011527,2]
[353992246,1740175853748,-500.0,0.00011527,2]
[353992247,1740175853758,-500.0,0.00011527,2]
[353992248,1740175853767,-500.0,0.00011527,2]
[353992249,1740175853776,-500.0,0.00011527,2]
[353992250,1740175853786,-644.72,0.00011527,2]
[353992251,1740175853795,-500.0,0.00011527,2]
[353992252,1740175853804,-712.4,0.00011527,2]
[353992253,1740175853814,-649.39,0.00011527,2]
[353992254,1740175853823,-500.0,0.00011527,2]
[353992255,1740175853833,-1563.0,0.00011527,2]
[353992256,1740175853842,-500.0,0.00011527,2]
[353992257,1740175853852,-1053.07,0.00011527,2]
[353992258,1740175853861,-1338.11,0.00011527,2]
[353992259,1740175853871,-500.0,0.00011527,2]
[353992260,1740175853880,-1204.61,0.00011527,2]
[353992261,1740175853889,-516.44,0.00011527,2]
[353992262,1740175853898,-524.75,0.00011527,2]
[353992263,1740175853907,-1032.03,0.00011527,2]
[353992264,1740175853917,-179.24074447,0.00011527,2]
[353992265,1740175853927,-500.0,0.00011527,2]
[353992266,1740175853937,-500.0,0.00011527,2]
[353992267,1740175853946,-500.0,0.00011527,2]
[353992268,1740175853956,-500.0,0.00011527,2]
[353992269,1740175853966,-500.0,0.00011527,2]
[353992270,1740175853975,-768.2,0.00011527,2]
[353992271,1740175853984,-500.0,0.00011527,2]
[353992272,1740175853994,-785.25,0.00011527,2]
[353992273,1740175854003,-500.0,0.00011527,2]
[353992274,1740175854012,-838.82,0.00011527,2]
[353992275,1740175854021,-1010.76,0.00011527,2]
[353992276,1740175854031,-500.0,0.00011527,2]
[353992277,1740175854040,-2224.65,0.00011527,2]
[353992278,1740175854049,-500.0,0.00011527,2]
[353992279,1740175854059,-500.0,0.00011527,2]
[353992280,1740175854068,-500.0,0.00011527,2]
[353992281,1740175854083,-593.42400989,0.00011527,2]
[353992282,1740175854094,-557.6,0.00011527,2]
[353992283,1740175854105,-500.0,0.00011527,2]
[353992284,1740175854115,-500.0,0.00011527,2]
[353992285,1740175854127,-500.0,0.00011527,2]
[353992286,1740175854137,-500.0,0.00011527,2]
[353992287,1740175854147,-500.0,0.00011527,2]
[353992288,1740175854156,-94037.60070299,0.00011527,2]
[353992289,1740175854166,-2500.0,0.00011535,2]
[353992290,1740175854176,-2500.0,0.00011535,2]
[353992291,1740175854186,-150.0,0.00011556,2]
[353992292,1740175854196,-1000.0,0.00011566,2]
[353992293,1740175854206,-840.36,0.00011607,2]
[353992294,1740175854215,-500.0,0.00011607,2]
[353992295,1740175854225,-550.99,0.00011607,2]
[353992296,1740175854234,-456.441457,0.00011607,2]
[353992297,1740175854244,-1301.04,0.00011607,2]
[353992298,1740175854254,-660.858377,0.00011607,2]
[353992299,1740175854263,-731.38,0.00011607,2]
[353992300,1740175854273,-643.93,0.00011607,2]
[353992301,1740175854283,-770.4,0.00011607,2]
[353992302,1740175854293,-1037.35,0.00011607,2]
[353992303,1740175854303,-761.15,0.00011607,2]
[353992304,1740175854313,-694.42,0.00011607,2]
[353992305,1740175854326,-999.84,0.00011607,2]
[353992306,1740175854336,-2978.62,0.00011607,2]
[353992307,1740175854346,-531.77,0.00011607,2]
[353992308,1740175854355,-1077.31,0.00011607,2]
[353992309,1740175854366,-500.0,0.00011607,2]
[353992310,1740175854376,-999.03,0.00011607,2]
[353992311,1740175854386,-772.25,0.00011607,2]
[353992312,1740175854396,-687.87,0.00011607,2]
[353992313,1740175854407,-798.38,0.00011607,2]
[353992314,1740175854416,-1330.6,0.00011607,2]
[353992315,1740175854426,-580.79,0.00011607,2]
[353992316,1740175854435,-500.0,0.00011607,2]
[353992317,1740175854445,-1652.61,0.00011607,2]
[353992318,1740175854454,-584.29,0.00011607,2]
[353992319,1740175854464,-500.0,0.00011607,2]
[353992320,1740175854473,-1064.57,0.00011607,2]
[353992321,1740175854483,-1257.4,0.00011607,2]
[353992322,1740175854492,-617.67,0.00011607,2]
[353992323,1740175854502,-1008.78,0.00011607,2]
[353992324,1740175854511,-934.47,0.00011607,2]
[353992325,1740175854521,-607.43,0.00011607,2]
[353992326,1740175854530,-1149.16,0.00011607,2]
[353992327,1740175854539,-557.37,0.00011607,2]
[353992328,1740175854549,-500.0,0.00011607,2]
[353992329,1740175854558,-1059.67,0.00011607,2]
[353992330,1740175854569,-713.85,0.00011607,2]
[353992331,1740175854579,-619.22,0.00011607,2]
[353992332,1740175854588,-500.0,0.00011607,2]
[353992333,1740175854598,-500.0,0.00011607,2]
[353992334,1740175854607,-877.35,0.00011607,2]
[353992335,1740175854619,-1059.0,0.00011607,2]
[353992336,1740175854629,-1371.99,0.00011607,2]
[353992337,1740175854641,-1195.87,0.00011607,2]
[353992338,1740175854650,-500.0,0.00011607,2]
[353992339,1740175854661,-1159.59,0.00011607,2]
[353992340,1740175854671,-500.0,0.00011607,2]
[353992341,1740175854681,-500.0,0.00011607,2]
[353992342,1740175854691,-716.76,0.00011607,2]
[353992343,1740175854702,-500.0,0.00011607,2]
[353992344,1740175854712,-500.0,0.00011607,2]
[353992345,1740175854723,-2524.55,0.00011607,2]
[353992346,1740175854734,-500.0,0.00011607,2]
[353992347,1740175854746,-222.60887664,0.00011608,2]
[353992348,1740175854755,-500.0,0.00011608,2]
[353992349,1740175854766,-500.0,0.00011608,2]
[353992350,1740175854776,-500.0,0.00011608,2]
[353992351,1740175854786,-831.16,0.00011608,2]
[353992352,1740175854797,-672.19,0.00011608,2]
[353992353,1740175854808,-614.03,0.00011608,2]
[353992354,1740175854821,-500.0,0.00011608,2]
[353992355,1740175854830,-181.99827704,0.00011608,2]
[353992356,1740175854840,-586.13,0.00011608,2]
[353992357,1740175854851,-500.0,0.00011608,2]
[353992358,1740175854861,-243.42,0.00011608,2]
[353992359,1740175854871,-500.0,0.00011608,2]
[353992360,1740175854881,-500.0,0.00011608,2]
[353992361,1740175854891,-500.0,0.00011608,2]
[353992362,1740175854901,-500.0,0.00011608,2]
[353992363,1740175854911,-500.0,0.00011608,2]
[353992364,1740175854921,-500.0,0.00011608,2]
[353992365,1740175854931,-500.0,0.00011608,2]
[353992366,1740175854941,-500.0,0.00011608,2]
[353992367,1740175854951,-500.0,0.00011608,2]
[353992368,1740175854961,-596.02,0.00011608,2]
[353992369,1740175854972,-238.61296515,0.00011608,2]
[353992370,1740175854982,-907.74,0.00011608,2]
[353992371,1740175854993,-505.12,0.00011608,2]
[353992372,1740175855003,-500.0,0.00011608,2]
[353992373,1740175855013,-552.39722698,0.00011608,2]
[353992374,1740175855023,-772.23,0.00011608,2]
[353992375,1740175855033,-633.15,0.00011608,2]
[353992376,1740175855043,-500.0,0.00011608,2]
[353992377,1740175855054,-1053.43,0.00011608,2]
[353992378,1740175855067,-500.0,0.00011608,2]
[353992379,1740175855077,-1338.15,0.00011608,2]
[353992380,1740175855087,-505.52,0.00011608,2]
[353992381,1740175855097,-640.1,0.00011608,2]
[353992382,1740175855107,-500.0,0.00011608,2]
[353992383,1740175855119,-500.0,0.00011608,2]
[353992384,1740175855129,-500.0,0.00011609,2]
[353992385,1740175855139,-500.0,0.00011609,2]
[353992386,1740175855149,-500.0,0.00011609,2]
[353992387,1740175855160,-500.0,0.00011609,2]
[353992388,1740175855170,-500.0,0.00011609,2]
[353992389,1740175855179,-500.0,0.00011609,2]
[353992390,1740175855189,-500.0,0.00011609,2]
[353992391,1740175855198,-500.0,0.00011609,2]
[353992392,1740175855208,-500.0,0.00011609,2]
[353992393,1740175855218,-587.93,0.00011609,2]
[353992394,1740175855228,-546.63,0.00011609,2]
[353992395,1740175855238,-500.0,0.00011609,2]
[353992396,1740175855248,-500.0,0.00011609,2]
[353992397,1740175855258,-515.89,0.00011609,2]
[353992398,1740175855268,-579.03,0.00011609,2]
[353992399,1740175855278,-500.0,0.00011609,2]
[353992400,1740175855287,-618.46,0.00011609,2]
[353992401,1740175855296,-299.12087653,0.00011609,2]
[353992402,1740175855306,-500.0,0.00011609,2]
[353992403,1740175855316,-644.72,0.00011609,2]
[353992404,1740175855325,-500.0,0.00011609,2]
[353992405,1740175855335,-712.4,0.00011609,2]
[353992406,1740175855344,-649.39,0.00011609,2]
[353992407,1740175855355,-500.0,0.00011609,2]
[353992408,1740175855365,-1563.0,0.00011609,2]
[353992409,1740175855376,-500.0,0.00011609,2]
[353992410,1740175855387,-1053.07,0.00011609,2]
[353992411,1740175855397,-1338.11,0.00011609,2]
[353992412,1740175855407,-500.0,0.00011609,2]
[353992413,1740175855417,-1204.61,0.00011609,2]
[353992414,1740175855426,-516.44,0.00011609,2]
[353992415,1740175855437,-524.75,0.00011609,2]
[353992416,1740175855446,-1032.03,0.00011609,2]
[353992417,1740175855456,-500.0,0.00011609,2]
[353992418,1740175855466,-500.0,0.00011609,2]
[353992419,1740175855476,-500.0,0.00011609,2]
[353992420,1740175855485,-500.0,0.00011609,2]
[353992421,1740175855494,-500.0,0.00011609,2]
[353992422,1740175855504,-768.2,0.00011609,2]
[353992423,1740175855514,-500.0,0.00011609,2]
[353992424,1740175855523,-785.25,0.00011609,2]
[353992425,1740175855533,-838.82,0.00011609,2]
[353992426,1740175855542,-1010.76,0.00011609,2]
[353992427,1740175855552,-500.0,0.00011609,2]
[353992428,1740175855562,-2224.65,0.00011609,2]
[353992429,1740175855574,-500.0,0.00011609,2]
[353992430,1740175855584,-500.0,0.00011609,2]
[353992431,1740175855594,-500.0,0.00011609,2]
[353992432,1740175855609,-557.6,0.00011609,2]
[353992433,1740175855619,-500.0,0.00011609,2]
[353992434,1740175855628,-500.0,0.00011609,2]
[353992435,1740175855638,-500.0,0.00011609,2]
[353992436,1740175855650,-500.0,0.00011609,2]
[353992437,1740175855660,-500.0,0.00011609,2]
[353992438,1740175855670,-508.89,0.00011613,2]
[353992439,1740175855679,-150.0,0.00011617,2]
[353992440,1740175855689,-150.0,0.00011618,2]
[353992441,1740175855700,-366.69906878,0.00011638,2]
[353992442,1740175855710,-150.0,0.00011643,2]
[353992443,1740175855720,-500.0,0.00011669,2]
[353992444,1740175855730,-150.0,0.00011678,2]
[353992445,1740175855740,-150.0,0.00011685,2]
[353992446,1740175855749,-500.0,0.0001169,2]
[353992447,1740175855759,-500.0,0.0001169,2]
[353992448,1740175855768,-500.0,0.0001169,2]
[353992449,1740175855780,-831.16,0.0001169,2]
[353992450,1740175855789,-672.19,0.0001169,2]
[353992451,1740175855799,-614.03,0.0001169,2]
[353992452,1740175855808,-500.0,0.0001169,2]
[353992453,1740175855819,-586.13,0.0001169,2]
[353992454,1740175855829,-500.0,0.0001169,2]
[353992455,1740175855838,-573.36,0.0001169,2]
[353992456,1740175855849,-500.0,0.0001169,2]
[353992457,1740175855859,-500.0,0.0001169,2]
[353992458,1740175855868,-500.0,0.0001169,2]
[353992459,1740175855879,-500.0,0.0001169,2]
[353992460,1740175855889,-500.0,0.0001169,2]
[353992461,1740175855899,-500.0,0.0001169,2]
[353992462,1740175855909,-609.27,0.0001169,2]
[353992463,1740175855921,-500.0,0.0001169,2]
[353992464,1740175855931,-596.02,0.0001169,2]
[353992465,1740175855942,-840.36,0.0001169,2]
[353992466,1740175855952,-500.0,0.0001169,2]
[353992467,1740175855963,-550.99,0.0001169,2]
[353992468,1740175855973,-907.74,0.0001169,2]
[353992469,1740175855983,-456.441457,0.0001169,2]
[353992470,1740175855993,-505.12,0.0001169,2]
[353992471,1740175856003,-1301.04,0.0001169,2]
[353992472,1740175856013,-660.858377,0.0001169,2]
[353992473,1740175856022,-731.38,0.0001169,2]
[353992474,1740175856032,-500.0,0.0001169,2]
[353992475,1740175856042,-643.93,0.0001169,2]
[353992476,1740175856093,-772.23,0.0001169,2]
[353992477,1740175856103,-770.4,0.0001169,2]
[353992478,1740175856114,-633.15,0.0001169,2]
[353992479,1740175856125,-1037.35,0.0001169,2]
[353992480,1740175856135,-500.0,0.0001169,2]
[353992481,1740175856144,-761.15,0.0001169,2]
[353992482,1740175856154,-1053.43,0.0001169,2]
[353992483,1740175856164,-694.42,0.0001169,2]
[353992484,1740175856174,-999.84,0.0001169,2]
[353992485,1740175856184,-500.0,0.0001169,2]
[353992486,1740175856193,-2978.62,0.0001169,2]
[353992487,1740175856204,-531.77,0.0001169,2]
[353992488,1740175856214,-1077.31,0.0001169,2]
[353992489,1740175856224,-1338.15,0.0001169,2]
[353992490,1740175856233,-500.0,0.0001169,2]
[353992491,1740175856243,-999.03,0.0001169,2]
[353992492,1740175856253,-772.25,0.0001169,2]
[353992493,1740175856262,-687.87,0.0001169,2]
[353992494,1740175856271,-798.38,0.0001169,2]
[353992495,1740175856282,-1330.6,0.0001169,2]
[353992496,1740175856292,-580.79,0.0001169,2]
[353992497,1740175856301,-500.0,0.0001169,2]
[353992498,1740175856311,-1652.61,0.0001169,2]
[353992499,1740175856323,-584.29,0.0001169,2]
[353992500,1740175856332,-500.0,0.0001169,2]
[353992501,1740175856342,-505.52,0.0001169,2]
[353992502,1740175856352,-1064.57,0.0001169,2]
[353992503,1740175856362,-1257.4,0.0001169,2]
[353992504,1740175856372,-617.67,0.0001169,2]
[353992505,1740175856381,-640.1,0.0001169,2]
[353992506,1740175856391,-1008.78,0.0001169,2]
[353992507,1740175856401,-934.47,0.0001169,2]
[353992508,1740175856410,-607.43,0.0001169,2]
[353992509,1740175856419,-1149.16,0.0001169,2]
[353992510,1740175856428,-557.37,0.0001169,2]
[353992511,1740175856437,-500.0,0.0001169,2]
[353992512,1740175856447,-1059.67,0.0001169,2]
[353992513,1740175856456,-713.85,0.0001169,2]
[353992514,1740175856466,-619.22,0.0001169,2]